bitfinex/quotes_BTCUSD_20240703
["timestamp","ask_amount","ask_price","bid_price","bid_amount"]
[1720042864550,0.833115,60160.0,60159.0,0.01783]
[1720042864725,0.833115,60160.0,60159.0,0.31560053]
[1720042865062,0.833115,60160.0,60159.0,0.37323954]
[1720042865665,0.833115,60160.0,60159.0,0.48117565]
[1720042865824,0.833115,60160.0,60159.0,0.12576611]
[1720042866025,0.833115,60160.0,60159.0,0.42353664]
[1720042866258,0.833115,60160.0,60159.0,0.48117565]
[1720042867063,0.833115,60160.0,60159.0,0.42353664]
[1720042867264,0.833115,60160.0,60159.0,0.31560053]
[1720042867482,0.500669,60160.0,60159.0,0.31560053]
[1720042867677,0.500669,60160.0,60159.0,0.37323954]
[1720042867856,0.500669,60160.0,60159.0,0.01783]
[1720042868176,0.500669,60160.0,60159.0,0.55283954]
[1720042868378,0.500669,60160.0,60159.0,0.65846565]
[1720042868793,0.500669,60160.0,60159.0,0.60082664]
[1720042869445,0.500669,60160.0,60159.0,0.55283954]
[1720042869852,0.293089,60160.0,60159.0,0.55283954]
[1720042870419,0.168223,60160.0,60159.0,0.55283954]
[1720042873305,0.002,60160.0,60159.0,0.55283954]
[1720042873511,0.12685879,60160.0,60159.0,0.55283954]
[1720042873712,0.29308179,60160.0,60159.0,0.67808955]
[1720042874216,0.29308179,60160.0,60159.0,0.62045054]
[1720042874417,0.29308179,60160.0,60159.0,0.67808955]
[1720042874621,0.29308179,60160.0,60159.0,0.62045054]
[1720042875139,0.29308179,60160.0,60159.0,0.67808955]
[1720042875364,0.29308179,60160.0,60159.0,0.62045054]
[1720042876025,0.29307381,60160.0,60159.0,0.62045054]
[1720042876227,0.03429075,60160.0,60159.0,0.62045054]
[1720042876425,0.20051375,60160.0,60159.0,0.62045054]
[1720042877550,0.03429075,60160.0,60159.0,0.62045054]
[1720042877745,0.03429075,60160.0,60159.0,0.67808955]
[1720042878321,0.03429075,60160.0,60159.0,0.62045054]
[1720042879144,0.166221,60161.0,60160.0,0.29777053]
[1720042879343,0.166221,60161.0,60160.0,0.35540954]
[1720042880347,0.166221,60161.0,60160.0,0.36140954]
[1720042881230,0.166221,60161.0,60160.0,0.30377053]
[1720042881429,0.166221,60161.0,60160.0,0.36140954]
[1720042882532,0.161221,60161.0,60160.0,0.36140954]
[1720042882763,0.161221,60161.0,60160.0,0.47293565]
[1720042883364,0.28606168,60161.0,60160.0,0.47293565]
[1720042883752,0.12484068,60161.0,60160.0,0.47293565]
[1720042884153,0.09987149,60161.0,60160.0,0.47293565]
[1720042884407,0.29197269,60162.0,60161.0,0.35540954]
[1720042884731,0.29197269,60162.0,60161.0,0.39246104]
[1720042884919,0.16713201,60162.0,60161.0,0.39246104]
[1720042885490,0.29196978,60162.0,60161.0,0.39246104]
[1720042885883,0.29196978,60162.0,60161.0,0.39746104]
[1720042886515,0.29196978,60162.0,60161.0,0.40246104]
[1720042888717,0.16713201,60162.0,60161.0,0.40246104]
[1720042888924,0.29196742,60162.0,60161.0,0.40246104]
[1720042889819,0.00091301,60162.0,60161.0,0.40246104]
[1720042889984,0.29696342,60163.0,60161.0,0.40246104]
[1720042890183,0.29696342,60163.0,60162.0,0.50839446]
[1720042892132,0.2969539,60163.0,60162.0,0.51239446]
[1720042892334,0.2969539,60163.0,60162.0,0.45475545]
[1720042892481,0.17212801,60163.0,60162.0,0.45475545]
[1720042892687,0.29695617,60163.0,60162.0,0.45475545]
[1720042892886,0.29695617,60163.0,60162.0,0.51639446]
[1720042895089,0.17212801,60163.0,60162.0,0.51639446]
[1720042897826,0.17212801,60163.0,60162.0,0.45875545]
[1720042898159,0.17212801,60163.0,60162.0,0.51639446]
[1720042898708,0.00591301,60163.0,60162.0,0.51639446]
[1720042898829,0.00591301,60163.0,60162.0,0.82719446]
[1720042899028,0.00591301,60163.0,60162.0,0.99341146]
[1720042903473,0.00591301,60163.0,60162.0,1.32584646]
[1720042908761,0.00591301,60163.0,60162.0,1.32184646]
[1720042909022,0.00591301,60163.0,60162.0,1.33284646]
[1720042909438,0.00591301,60163.0,60162.0,1.32884646]
[1720042910085,0.00591301,60163.0,60162.0,1.33884646]
[1720042919395,0.00591301,60163.0,60162.0,1.67128146]
[1720042920052,0.00591301,60163.0,60162.0,1.33884646]
[1720042920989,0.00591301,60163.0,60162.0,2.44188104]
[1720042921190,0.00591301,60163.0,60162.0,2.47188104]
[1720042922051,0.00591301,60163.0,60162.0,2.47271104]
[1720042922202,0.00682602,60163.0,60162.0,2.45171104]
[1720042922621,0.00682602,60163.0,60162.0,2.81214604]
[1720042922991,0.00682602,60163.0,60162.0,3.11214604]
[1720042923427,0.00682602,60163.0,60162.0,3.18874604]
[1720042923648,0.00682602,60163.0,60162.0,3.49260258]
[1720042923941,0.00682602,60163.0,60162.0,2.8596765]
[1720042924307,0.00682602,60163.0,60162.0,3.54508604]
[1720042924439,0.00682602,60163.0,60162.0,3.66920286]
[1720042924639,0.00682602,60163.0,60162.0,3.68662603]
[1720042924844,0.00682602,60163.0,60162.0,3.70062603]
[1720042925240,0.00682602,60163.0,60162.0,3.68662603]
[1720042925462,0.00682602,60163.0,60162.0,3.54850921]
[1720042925847,0.00682602,60163.0,60162.0,3.56250921]
[1720042926363,0.00682602,60163.0,60162.0,3.47190921]
[1720042926542,0.00682602,60163.0,60162.0,3.54850921]
[1720042926693,0.00682602,60163.0,60162.0,3.56250921]
[1720042928213,0.00682602,60163.0,60162.0,3.86250921]
[1720042928416,0.00682602,60163.0,60162.0,4.19494421]
[1720042928616,0.00682602,60163.0,60162.0,4.33305323]
[1720042928939,0.00682602,60163.0,60162.0,3.64764369]
[1720042929144,0.00682602,60163.0,60162.0,4.33305323]
[1720042929280,0.00682602,60163.0,60162.0,4.19494421]
[1720042929935,0.00682602,60163.0,60162.0,3.50953467]
[1720042930137,0.00682602,60163.0,60162.0,4.21194421]
[1720042938315,0.00682602,60163.0,60162.0,3.87950921]
[1720042938882,0.00682602,60163.0,60162.0,4.21194421]
[1720042944561,0.00682602,60163.0,60162.0,4.19794421]
[1720042944918,0.00682602,60163.0,60162.0,4.21194421]
[1720042945516,0.00682602,60163.0,60162.0,4.13534421]
[1720042945787,0.00682602,60163.0,60162.0,4.21194421]
[1720042946161,0.00682602,60163.0,60162.0,4.33605748]
[1720042946364,0.00682602,60163.0,60162.0,4.35005748]
[1720042947361,0.00682602,60163.0,60162.0,3.94102248]
[1720042947563,0.00682602,60163.0,60162.0,4.01762248]
[1720042947993,0.00682602,60163.0,60162.0,4.35005748]
[1720042948188,0.00682602,60163.0,60162.0,4.35005715]
[1720042950839,0.00682602,60163.0,60162.0,4.34985715]
[1720042954456,0.00682602,60163.0,60162.0,4.21174421]
[1720042954640,0.00682602,60163.0,60162.0,4.34985766]
[1720042960664,0.16614,60190.0,60189.0,0.32777053]
[1720042960665,0.16132096,60190.0,60189.0,0.32777053]
[1720042961631,0.16132096,60190.0,60189.0,0.29777053]
[1720042961857,0.16132096,60190.0,60189.0,0.35540954]
[1720042962607,0.23600649,60190.0,60189.0,0.36040954]
[1720042962834,0.23600649,60190.0,60189.0,0.40246104]
[1720042963800,0.45242096,60190.0,60189.0,0.40246104]
[1720042964035,0.78470196,60190.0,60189.0,0.0470515]
[1720042964275,0.88436748,60190.0,60189.0,0.0470515]
[1720042964531,0.78470196,60190.0,60189.0,0.0470515]
[1720042964771,0.45242096,60190.0,60189.0,0.0470515]
[1720042965250,0.45242096,60190.0,60189.0,0.34482203]
[1720042965501,0.45242096,60190.0,60189.0,0.33982203]
[1720042965959,0.45242096,60190.0,60189.0,0.34182203]
[1720042966641,0.45242096,60190.0,60189.0,0.34482203]
[1720042967121,0.55242096,60190.0,60189.0,0.34482203]
[1720042967351,0.88470196,60190.0,60189.0,0.34482203]
[1720042968115,0.88470196,60190.0,60189.0,0.0470515]
[1720042971768,0.88470196,60190.0,60189.0,0.34482203]
[1720042971949,0.88470196,60190.0,60189.0,0.0470515]
[1720042984318,0.88470196,60190.0,60189.0,0.34482203]
[1720042984901,0.88470196,60190.0,60189.0,0.01]
[1720042986823,0.88470196,60190.0,60189.0,0.01083]
[1720042987019,0.88561497,60190.0,60189.0,0.01083]
[1720043002127,0.88561497,60190.0,60189.0,0.36623954]
[1720043002128,0.65531497,60190.0,60189.0,0.36623954]
[1720043002334,0.65531497,60190.0,60189.0,0.37301106]
[1720043002502,0.98759597,60190.0,60189.0,0.07524053]
[1720043002908,0.98759597,60190.0,60189.0,0.01083]
[1720043004714,0.98759597,60190.0,60189.0,0.30860053]
[1720043006520,0.65531497,60190.0,60189.0,0.30860053]
[1720043006745,0.65531497,60190.0,60189.0,0.36623954]
[1720043009417,0.12577277,60190.0,60189.0,0.65763954]
[1720043009722,0.00091301,60190.0,60189.0,0.76752014]
[1720043009870,0.12574664,60190.0,60189.0,0.76752014]
[1720043010070,0.00091301,60190.0,60189.0,0.76752014]
[1720043010385,0.00091301,60190.0,60189.0,0.76552014]
[1720043010733,0.00091301,60190.0,60189.0,0.76752014]
[1720043011132,0.00091301,60190.0,60189.0,0.76552014]
[1720043011587,0.00091301,60190.0,60189.0,0.76252014]
[1720043012397,0.00091301,60190.0,60189.0,0.76752014]
[1720043014192,0.00091301,60190.0,60189.0,0.64252014]
[1720043018434,0.801144,60175.0,60174.0,0.06655]
[1720043018600,0.498553,60174.0,60173.0,0.29777053]
[1720043018801,0.166187,60173.0,60172.0,0.29777053]
[1720043019204,0.45235141,60175.0,60169.0,0.29777053]
[1720043019205,0.3026,60175.0,60169.0,0.29777053]
[1720043019524,0.29090272,60170.0,60169.0,0.36875806]
[1720043019917,0.498586,60170.0,60169.0,0.36875806]
[1720043020213,0.498586,60170.0,60165.0,0.29777053]
[1720043020214,0.332391,60170.0,60165.0,0.29777053]
[1720043020432,0.12470847,60168.0,60162.0,0.67362213]
[1720043020650,0.14976242,60173.0,60164.0,0.34128559]
[1720043020651,0.59832751,60165.0,60164.0,0.34128559]
[1720043020835,0.166209,60165.0,60164.0,0.34128559]
[1720043021454,0.166209,60165.0,60164.0,0.29777053]
[1720043021655,0.498628,60165.0,60164.0,0.29777053]
[1720043022085,0.498628,60165.0,60162.0,0.01783]
[1720043022086,0.831075,60163.0,60162.0,0.01783]
[1720043023642,0.174215,60163.0,60162.0,0.41362559]
[1720043023795,0.174215,60163.0,60162.0,0.13581605]
[1720043023796,0.511645,60163.0,60162.0,0.13581605]
[1720043023998,0.511645,60163.0,60162.0,0.49122559]
[1720043024408,0.008,60163.0,60162.0,0.93372439]
[1720043024647,0.009,60163.0,60162.0,2.01024217]
[1720043024863,0.001,60163.0,60162.0,2.39467717]
[1720043025231,0.001,60163.0,60162.0,2.42799717]
[1720043026062,0.166177,60177.0,60176.0,0.27786578]
[1720043026256,0.166177,60177.0,60176.0,0.41436578]
[1720043026461,0.166177,60177.0,60176.0,0.71213631]
[1720043026894,0.166177,60177.0,60176.0,0.76977532]
[1720043027041,0.166177,60177.0,60176.0,0.71213631]
[1720043027239,0.166177,60177.0,60176.0,0.75152236]
[1720043027618,0.4769,60178.0,60177.0,0.63327532]
[1720043027884,0.4769,60178.0,60177.0,0.27786578]
[1720043028060,0.643073,60178.0,60177.0,0.63327532]
[1720043028273,0.643073,60178.0,60177.0,0.667584]
[1720043028646,0.4769,60178.0,60177.0,0.36981347]
[1720043029052,0.4769,60178.0,60177.0,0.37581347]
[1720043029254,0.4769,60178.0,60177.0,0.28386578]
[1720043030183,0.4769,60178.0,60177.0,0.28986578]
[1720043030490,0.166171,60179.0,60178.0,0.27786578]
[1720043031076,0.166171,60179.0,60178.0,0.57563631]
[1720043031265,0.166171,60179.0,60178.0,0.66378994]
[1720043031684,0.166171,60179.0,60178.0,0.66878994]
[1720043031878,0.166171,60179.0,60178.0,0.67378994]
[1720043032289,0.33234,60180.0,60178.0,0.67378994]
[1720043032290,0.498508,60180.0,60178.0,0.67378994]
[1720043032458,0.498508,60180.0,60179.0,0.32104589]
[1720043032862,0.166168,60180.0,60179.0,0.32104589]
[1720043033115,0.09948174,60189.0,60187.0,0.27786578]
[1720043033328,0.166146,60188.0,60187.0,0.30565236]
[1720043034555,0.166146,60188.0,60187.0,0.30665236]
[1720043035032,0.166146,60188.0,60187.0,0.30565236]
[1720043035875,0.170146,60188.0,60187.0,0.30665236]
[1720043036294,0.171146,60188.0,60187.0,0.30665236]
[1720043036494,0.171146,60188.0,60187.0,0.60842289]
[1720043037585,0.171146,60188.0,60187.0,0.74242289]
[1720043037933,0.166146,60188.0,60187.0,0.74142289]
[1720043038775,0.166146,60188.0,60187.0,0.60742289]
[1720043039922,0.00091301,60190.0,60188.0,0.29777053]
[1720043040124,0.166143,60189.0,60188.0,0.06036705]
[1720043040324,0.166143,60189.0,60188.0,0.41577659]
[1720043040533,0.16705401,60190.0,60189.0,0.29777053]
[1720043040723,0.16705401,60190.0,60189.0,0.36873722]
[1720043041072,0.16705401,60190.0,60189.0,0.42637623]
[1720043041268,0.16705401,60190.0,60189.0,0.36873722]
[1720043043489,0.16705401,60190.0,60189.0,0.36973722]
[1720043043714,0.16705401,60190.0,60189.0,0.37073722]
[1720043044643,0.00091301,60190.0,60189.0,0.37073722]
[1720043045237,0.00091301,60190.0,60189.0,0.42837623]
[1720043046684,0.16705301,60190.0,60189.0,0.42837623]
[1720043047411,0.16705301,60190.0,60189.0,0.37073722]
[1720043047844,0.16705301,60190.0,60189.0,0.42837623]
[1720043048042,0.16705301,60190.0,60189.0,0.37073722]
[1720043048856,0.16705301,60190.0,60189.0,0.42837623]
[1720043049156,0.16705301,60190.0,60189.0,0.37073722]
[1720043049358,0.16705301,60190.0,60189.0,0.42837623]
[1720043049520,0.16705301,60190.0,60189.0,0.37073722]
[1720043049863,0.16705301,60190.0,60189.0,0.36873722]
[1720043050001,0.16705301,60190.0,60189.0,0.36973722]
[1720043050428,0.17533301,60190.0,60189.0,0.36973722]
[1720043050843,0.17533301,60190.0,60189.0,0.37673722]
[1720043051246,0.17533301,60190.0,60189.0,0.36973722]
[1720043051834,0.17533301,60190.0,60189.0,0.36873722]
[1720043052263,0.17533301,60190.0,60189.0,0.37573722]
[1720043052486,0.17533301,60190.0,60189.0,0.36873722]
[1720043052821,0.17533301,60190.0,60189.0,0.37773722]
[1720043053033,0.17533301,60190.0,60189.0,0.72487623]
[1720043053232,0.17533301,60190.0,60189.0,0.66723722]
[1720043055116,0.332267,60193.0,60189.0,0.66723722]
[1720043055309,0.498413,60191.0,60190.0,0.06036705]
[1720043055856,0.498413,60191.0,60190.0,0.35813758]
[1720043056462,0.00917401,60195.0,60194.0,0.63327532]
[1720043056665,0.00917401,60195.0,60194.0,0.94114081]
[1720043057249,0.00917401,60195.0,60194.0,1.03066981]
[1720043058031,0.00917401,60195.0,60194.0,0.86454081]
[1720043058233,0.00917401,60198.0,60197.0,0.96551732]
[1720043058446,0.00917401,60198.0,60197.0,2.12712798]
[1720043058662,0.01249696,60198.0,60197.0,2.12712798]
[1720043059270,0.01249696,60198.0,60197.0,2.04697216]
[1720043059693,0.01249696,60198.0,60197.0,2.05097216]
[1720043059893,0.01249696,60198.0,60197.0,2.05597216]
[1720043060633,0.332183,60208.0,60205.0,0.27786578]
[1720043060773,0.166094,60207.0,60206.0,0.29777053]
[1720043062076,0.169094,60207.0,60206.0,0.29877053]
[1720043062279,0.166094,60207.0,60206.0,0.34896357]
[1720043062518,0.166094,60207.0,60206.0,0.35396357]
[1720043064400,0.166094,60207.0,60206.0,0.35796357]
[1720043065812,0.317494,60207.0,60206.0,0.35796357]
[1720043066659,0.649681,60207.0,60206.0,0.35796357]
[1720043066863,0.166088,60209.0,60208.0,0.29777053]
[1720043067298,0.498264,60209.0,60208.0,0.29777053]
[1720043067623,0.779564,60209.0,60208.0,0.57563631]
[1720043067831,0.779564,60209.0,60208.0,0.3643139]
[1720043068438,0.779564,60209.0,60208.0,0.06654337]
[1720043068658,0.779564,60209.0,60208.0,0.3643139]
[1720043069067,0.779564,60209.0,60208.0,0.3673139]
[1720043069676,0.779564,60209.0,60208.0,0.3663139]
[1720043069903,0.779564,60209.0,60208.0,0.3643139]
[1720043070100,0.779564,60209.0,60208.0,0.3703139]
[1720043070896,1.11174,60209.0,60208.0,0.3703139]
[1720043071655,0.98184,60209.0,60208.0,0.3703139]
[1720043072642,0.649664,60209.0,60208.0,0.3673139]
[1720043073052,0.498264,60209.0,60208.0,0.3673139]
[1720043073346,0.498264,60209.0,60208.0,0.3713139]
[1720043073508,0.498264,60209.0,60208.0,0.3783139]
[1720043075165,0.498264,60209.0,60208.0,0.3713139]
[1720043075361,0.498264,60209.0,60208.0,0.3783139]
[1720043075772,0.498264,60209.0,60208.0,0.3643139]
[1720043076235,0.498264,60209.0,60208.0,0.3783139]
[1720043076561,0.498264,60209.0,60208.0,0.3713139]
[1720043076964,0.498264,60209.0,60208.0,0.3783139]
[1720043078980,0.498264,60209.0,60208.0,0.3643139]
[1720043079183,0.498264,60209.0,60208.0,0.3713139]
[1720043079413,0.166088,60209.0,60208.0,0.3783139]
[1720043079661,0.166088,60209.0,60208.0,0.3643139]
[1720043079954,0.166088,60209.0,60208.0,0.3783139]
[1720043082107,0.166088,60209.0,60208.0,0.3713139]
[1720043082669,0.166089,60209.0,60208.0,0.3713139]
[1720043083255,0.166089,60209.0,60208.0,0.3643139]
[1720043083556,0.166089,60209.0,60208.0,0.3713139]
[1720043083771,0.166089,60209.0,60208.0,0.3783139]
[1720043085405,0.166089,60209.0,60208.0,0.43595291]
[1720043085617,0.166089,60209.0,60208.0,0.3783139]
[1720043087076,0.07460706,60211.0,60208.0,0.3783139]
[1720043087274,0.166087,60210.0,60209.0,0.05561636]
[1720043088100,0.166087,60210.0,60209.0,0.48058689]
[1720043088458,0.166087,60210.0,60209.0,0.35338689]
[1720043089093,0.166087,60210.0,60209.0,0.35838689]
[1720043089822,0.166087,60210.0,60209.0,0.36438689]
[1720043091085,0.07461599,60211.0,60209.0,0.36438689]
[1720043091237,0.24069799,60211.0,60210.0,0.06654337]
[1720043092056,0.24071472,60211.0,60210.0,0.06654337]
[1720043092424,0.24072185,60211.0,60210.0,0.3683139]
[1720043093062,0.24072185,60211.0,60210.0,0.3723139]
[1720043094303,0.166082,60211.0,60210.0,0.3723139]
[1720043094468,0.24074014,60211.0,60210.0,0.3723139]
[1720043095095,0.24073941,60211.0,60210.0,0.3723139]
[1720043095493,0.24075093,60211.0,60210.0,0.3723139]
[1720043096007,0.166082,60211.0,60210.0,0.3723139]
[1720043096215,0.26564057,60211.0,60210.0,0.3723139]
[1720043097244,0.166082,60211.0,60210.0,0.3723139]
[1720043097992,0.26568375,60211.0,60210.0,0.3723139]
[1720043098192,0.26568336,60211.0,60210.0,0.3723139]
[1720043098426,0.166082,60211.0,60210.0,0.3723139]
[1720043099275,0.2905837,60211.0,60210.0,0.3723139]
[1720043100417,0.166082,60211.0,60210.0,0.3723139]
[1720043101715,0.166082,60211.0,60210.0,0.008]
[1720043101716,0.498247,60211.0,60210.0,0.008]
[1720043102380,0.64776333,60211.0,60210.0,0.008]
[1720043103729,0.498247,60211.0,60210.0,0.008]
[1720043104120,0.498247,60211.0,60210.0,0.30577053]
[1720043104321,0.498247,60211.0,60210.0,0.008]
[1720043104526,0.498247,60211.0,60210.0,0.38243806]
[1720043104755,0.498247,60211.0,60210.0,0.008]
[1720043108783,0.498247,60211.0,60210.0,0.1714]
[1720043113352,0.498247,60211.0,60210.0,0.1634]
[1720043113911,0.498247,60211.0,60210.0,0.1674]
[1720043114096,0.498247,60211.0,60210.0,0.1634]
[1720043114492,0.0121252,60213.0,60210.0,0.67471296]
[1720043114697,0.07486474,60216.0,60213.0,0.63327532]
[1720043114881,0.07486474,60216.0,60215.0,1.57710814]
[1720043115039,0.07486474,60221.0,60220.0,0.57563631]
[1720043115236,0.00917401,60223.0,60222.0,0.82932732]
[1720043115457,0.00917401,60223.0,60222.0,1.53468714]
[1720043115674,0.00917401,60223.0,60222.0,1.55768714]
[1720043115869,0.00917401,60223.0,60222.0,1.60428714]
[1720043116075,0.00917401,60223.0,60222.0,2.26849514]
[1720043116504,0.00917401,60223.0,60222.0,2.42879394]
[1720043116708,0.00917401,60223.0,60222.0,2.0733844]
[1720043116852,0.00917401,60223.0,60222.0,2.50611394]
[1720043117253,0.00917401,60223.0,60222.0,2.29635812]
[1720043117475,0.00917401,60223.0,60222.0,2.38695812]
[1720043117674,0.00917401,60223.0,60222.0,2.35895812]
[1720043118066,0.00917401,60223.0,60222.0,2.37295812]
[1720043118274,0.00917401,60223.0,60222.0,2.35895812]
[1720043119092,0.00917401,60223.0,60222.0,2.37295812]
[1720043119531,0.00917401,60223.0,60222.0,2.29635812]
[1720043119730,0.00917401,60223.0,60222.0,2.40295812]
[1720043119931,0.00917401,60223.0,60222.0,1.94094858]
[1720043120315,0.00917401,60223.0,60222.0,2.29735812]
[1720043120482,0.00917401,60223.0,60222.0,2.40395812]
[1720043120642,0.00917401,60223.0,60222.0,2.40295812]
[1720043120845,0.00917401,60223.0,60222.0,2.41695812]
[1720043121032,0.00917401,60223.0,60222.0,2.38695812]
[1720043121237,0.00917401,60223.0,60222.0,2.41695812]
[1720043124872,0.00917401,60223.0,60222.0,1.95494858]
[1720043125081,0.00917401,60223.0,60222.0,2.38695812]
[1720043125764,0.00917401,60223.0,60222.0,2.31035812]
[1720043126000,0.00917401,60223.0,60222.0,2.41695812]
[1720043127512,0.00917401,60223.0,60222.0,2.40295812]
[1720043127715,0.00917401,60223.0,60222.0,2.35895812]
[1720043128099,0.00917401,60223.0,60222.0,2.40295812]
[1720043128249,0.00917401,60223.0,60222.0,2.38895812]
[1720043128797,0.00917401,60223.0,60222.0,2.40295812]
[1720043129609,0.00917401,60223.0,60222.0,2.41695812]
[1720043129958,0.00917401,60223.0,60222.0,2.40295812]
[1720043130174,0.00917401,60223.0,60222.0,2.42595812]
[1720043130376,0.00917401,60223.0,60222.0,2.43995812]
[1720043130835,0.00917401,60223.0,60222.0,2.41195812]
[1720043131222,0.00917401,60223.0,60222.0,2.43995812]
[1720043132244,0.00917401,60223.0,60222.0,1.97794858]
[1720043132481,0.00917401,60223.0,60222.0,2.43995812]
[1720043132643,0.00917401,60223.0,60222.0,2.41195812]
[1720043133041,0.00917401,60223.0,60222.0,2.42595812]
[1720043133785,0.00917401,60223.0,60222.0,2.41195812]
[1720043134004,0.00917401,60223.0,60222.0,2.43995812]
[1720043134376,0.00917401,60223.0,60222.0,2.42595812]
[1720043134591,0.00917401,60223.0,60222.0,2.43995812]
[1720043136566,0.00917401,60223.0,60222.0,2.42595812]
[1720043136918,0.00917401,60223.0,60222.0,2.43995812]
[1720043137126,0.00917401,60223.0,60222.0,2.42595812]
[1720043137301,0.00917401,60223.0,60222.0,2.41195812]
[1720043137499,0.00917401,60223.0,60222.0,2.43995812]
[1720043137714,0.00917401,60223.0,60222.0,2.42595812]
[1720043138097,0.00917401,60223.0,60222.0,2.43995812]
[1720043138721,0.00917401,60223.0,60222.0,3.07206212]
[1720043138920,0.00917401,60223.0,60222.0,3.05806212]
[1720043139148,0.00917401,60223.0,60222.0,3.07206212]
[1720043139489,0.00917401,60223.0,60222.0,3.05806212]
[1720043139912,0.00917401,60223.0,60222.0,3.07206212]
[1720043140290,0.00917401,60223.0,60222.0,3.05806212]
[1720043140711,0.00917401,60223.0,60222.0,3.07206212]
[1720043140898,0.00917401,60223.0,60222.0,3.37206212]
[1720043141098,0.00917401,60223.0,60222.0,3.07206212]
[1720043141514,0.00917401,60223.0,60222.0,3.37206212]
[1720043141720,0.00917401,60223.0,60222.0,3.35806212]
[1720043142341,0.00917401,60223.0,60222.0,3.05806212]
[1720043142539,0.00917401,60223.0,60222.0,3.34406212]
[1720043142752,0.00917401,60223.0,60222.0,3.35806212]
[1720043142960,0.00917401,60223.0,60222.0,3.37206212]
[1720043143162,0.00917401,60223.0,60222.0,3.02595812]
[1720043143563,0.00917401,60223.0,60222.0,2.72595812]
[1720043143873,0.00917401,60223.0,60222.0,3.03995812]
[1720043144954,0.00917401,60223.0,60222.0,2.73995812]
[1720043145284,0.00917401,60223.0,60222.0,3.03995812]
[1720043145588,0.00917401,60223.0,60222.0,3.02595812]
[1720043145828,0.00917401,60223.0,60222.0,2.71195812]
[1720043146138,0.00917401,60223.0,60222.0,3.02595812]
[1720043146451,0.00917401,60223.0,60222.0,2.73995812]
[1720043146581,0.00917401,60223.0,60222.0,3.03995812]
[1720043147002,0.00917401,60223.0,60222.0,2.73995812]
[1720043147206,0.00917401,60223.0,60222.0,3.03995812]
[1720043147587,0.00917401,60223.0,60222.0,2.73995812]
[1720043147819,0.00917401,60223.0,60222.0,3.03995812]
[1720043148010,0.00917401,60223.0,60222.0,2.73995812]
[1720043148865,0.00917401,60223.0,60222.0,3.03995812]
[1720043149529,0.00917401,60223.0,60222.0,2.73995812]
[1720043150121,0.00917401,60223.0,60222.0,3.03995812]
[1720043152373,0.00917401,60224.0,60222.0,3.03995812]
[1720043152374,0.00917401,60224.0,60223.0,2.58593131]
[1720043152531,0.00917401,60224.0,60223.0,2.84938593]
[1720043153455,0.00917401,60224.0,60223.0,2.86338593]
[1720043153676,0.00917401,60224.0,60223.0,2.87738593]
[1720043154841,0.00917401,60224.0,60223.0,3.70948493]
[1720043154971,0.00917401,60224.0,60223.0,3.80948493]
[1720043157661,0.00917401,60224.0,60223.0,3.79548493]
[1720043157807,0.00917401,60224.0,60223.0,3.80948493]
[1720043159062,0.00917401,60224.0,60223.0,3.79548493]
[1720043159600,0.00917401,60224.0,60223.0,3.80948493]
[1720043159914,0.00917401,60224.0,60223.0,3.79548493]
[1720043160125,0.00917401,60224.0,60223.0,3.80948493]
[1720043166205,0.00917401,60224.0,60223.0,3.38249494]
[1720043166403,0.00917401,60224.0,60223.0,3.76819494]
[1720043166606,0.00917401,60224.0,60223.0,3.0827854]
[1720043166861,0.00917401,60224.0,60223.0,3.46819494]
[1720043167069,0.00917401,60224.0,60223.0,3.39159494]
[1720043167270,0.00917401,60224.0,60223.0,3.46819494]
[1720043167868,0.00917401,60224.0,60223.0,3.39159494]
[1720043168469,0.00917401,60224.0,60223.0,3.76819494]
[1720043168866,0.00917401,60224.0,60223.0,3.69159494]
[1720043169100,0.00917401,60224.0,60223.0,3.76819494]
[1720043169300,0.00917401,60224.0,60223.0,3.46819494]
[1720043169693,0.00917401,60224.0,60223.0,3.69159494]
[1720043169863,0.00917401,60224.0,60223.0,3.46819494]
[1720043170016,0.00917401,60224.0,60223.0,3.76819494]
[1720043170422,0.00917401,60224.0,60223.0,3.46819494]
[1720043171725,0.00917401,60224.0,60223.0,3.69159494]
[1720043171927,0.00917401,60224.0,60223.0,3.76819494]
[1720043172466,0.00917401,60224.0,60223.0,3.56816494]
[1720043172610,0.00917401,60224.0,60223.0,4.20026394]
[1720043173791,0.00917401,60224.0,60223.0,4.18626394]
[1720043174292,0.00917401,60224.0,60223.0,4.20026394]
[1720043175020,0.00917401,60224.0,60223.0,4.12366394]
[1720043175165,0.00917401,60224.0,60223.0,3.86816494]
[1720043176189,0.00051536,60229.0,60228.0,2.49091432]
[1720043176430,0.00051536,60229.0,60228.0,3.35051312]
[1720043177071,0.00051536,60229.0,60228.0,3.05051312]
[1720043177271,0.00051536,60229.0,60228.0,2.71844212]
[1720043177469,0.00051536,60229.0,60228.0,2.11874212]
[1720043177707,0.00051536,60229.0,60228.0,2.41874212]
[1720043177902,0.00051536,60229.0,60228.0,2.18522612]
[1720043178102,0.00051536,60229.0,60228.0,2.40862612]
[1720043178309,0.00051536,60229.0,60228.0,2.48522612]
[1720043178887,0.00051536,60229.0,60228.0,2.49922612]
[1720043180195,0.00051536,60229.0,60228.0,2.51322612]
[1720043181995,0.00051536,60229.0,60228.0,2.79412612]
[1720043182947,0.00051536,60229.0,60228.0,2.49412612]
[1720043183134,0.00051536,60229.0,60228.0,2.79412612]
[1720043184767,0.00051536,60229.0,60228.0,2.49412612]
[1720043187533,0.00051536,60229.0,60228.0,2.79412612]
[1720043190094,0.00051536,60229.0,60228.0,2.49412612]
[1720043190295,0.00051536,60229.0,60228.0,2.5096179]
[1720043191260,0.00051536,60229.0,60228.0,2.2287179]
[1720043193256,0.01708843,60231.0,60230.0,1.25553]
[1720043193601,0.01708843,60231.0,60230.0,1.76423834]
[1720043194717,0.01708843,60231.0,60230.0,1.77823834]
[1720043194916,0.01708843,60231.0,60230.0,1.79223834]
[1720043197636,0.01708843,60231.0,60230.0,2.07010412]
[1720043198133,0.165997,60242.0,60241.0,0.03]
[1720043198360,0.165997,60242.0,60241.0,0.1902988]
[1720043198789,0.397397,60242.0,60241.0,0.51570834]
[1720043199371,0.397397,60242.0,60241.0,0.52970834]
[1720043199944,0.397397,60242.0,60241.0,0.54370834]
[1720043204807,0.397397,60242.0,60241.0,0.82157412]
[1720043205220,0.2314,60242.0,60241.0,0.82157412]
[1720043209218,0.120719,60242.0,60241.0,0.82157412]
[1720043211825,0.12163201,60242.0,60241.0,0.82157412]
[1720043214741,0.28762901,60242.0,60241.0,0.82157412]
[1720043215333,0.28762901,60242.0,60241.0,0.76393511]
[1720043215527,0.28762901,60242.0,60241.0,0.82157412]
[1720043219329,0.61962301,60242.0,60241.0,0.76393511]
[1720043219530,0.61962301,60242.0,60241.0,0.82157412]
[1720043219726,0.61962301,60242.0,60241.0,0.76393511]
[1720043219934,0.28762901,60242.0,60241.0,0.76393511]
[1720043220346,0.28762901,60242.0,60241.0,0.46616458]